Cogmind - Beta 13 @@@ ROGUE MODE // 2024.03.23 @ 06:18:02 Player: H3-RMN Result: Destroyed by G-47 Trooper with Particle Gun Performance ------------- Evolutions (2) 1000 Regions Visited (5) 1000 Robots Destroyed (52) 260 Value Destroyed (1376) 1376 Prototype IDs (29) 580 Alien Tech Used (0) 0 Bonus (357) 357 TOTAL SCORE: 4573 Bonus ------- Follower Combat Kills 322 Aligned with FarCom 300 Friendly Fire -265 Cogmind --------- Core Integrity 0/550 Matter 282/300 Energy 100/100 System Corruption 1% Temperature Warm (149) Movement Core (700) Ox13 Location -8/Materials Parts ------- > --- POWER (1) -------- (None) > --- PROPULSION (4) --- (None) > --- UTILITY (4) ------ High-capacity Storage Unit Advanced Targeting Computer > --- WEAPON (2) ------- (None) > --- INVENTORY (20) --- Combat Airjet Combat Airjet Cryofiber Web Humpback High-capacity Matter Pod (200) High-capacity Matter Pod (200) Experimental Sensor Array Salvage Targeting Computer Kinecellerator Heavy Armor Plating Hardened Medium Armor Plating Shield Generator Hacking Suite System Shield System Shield Trap Reconfigurator Missile Launcher Peak State ------------ > --- POWER ------------ Nuclear Core > --- PROPULSION ------- Light Treads Wheel Wheel > --- UTILITY ---------- High-capacity Storage Unit Advanced Targeting Computer Improved Light Armor Plating Shield Generator > --- WEAPON ----------- Minigun Minigun > --- INVENTORY -------- Ion Engine Combat Airjet Combat Airjet Cryofiber Web Humpback High-capacity Matter Pod High-capacity Matter Pod Experimental Sensor Array Salvage Targeting Computer Salvage Targeting Computer Heavy Armor Plating Shield Generator System Shield Trap Reconfigurator Beam Cannon Light Assault Rifle Light Cannon Missile Launcher [Rating: 26] Favorites ----------- Power Nuclear Core Engine Ion Engine Power Core Nuclear Core Propulsion Light Treads Treads Light Treads Wheel Wheel Utility High-capacity Storage Unit Device Improved Terrain Scanner Storage High-capacity Storage Unit Processor Advanced Targeting Computer Protection Improved Light Armor Plating Weapon Assault Rifle Energy Cannon Beam Cannon Ballistic Gun Assault Rifle Ballistic Cannon Light Cannon Launcher Mini Grenade Launcher Build | -11 -10 -10 -10 -9 -8 ------- Run | Yrd Mat Min Exi Min Mat Slots Evolved 4 | . . . . . 4 Power . | . . . . . . Propulsion 2 | . . . . . 2 Utility 2 | . . . . . 2 Weapon . | . . . . . . Parts Attached 48 | 7 9 9 1 7 15 Power 4 | 1 . 2 . . 1 Engine 3 | 1 . 1 . . 1 Core 1 | . . 1 . . . Reactor . | . . . . . . Propulsion 14 | 2 3 2 . 2 5 Treads 6 | 1 2 1 . 1 1 Leg . | . . . . . . Wheel 8 | 1 1 1 . 1 4 Hover . | . . . . . . Flight . | . . . . . . Utility 12 | 2 3 1 . 1 5 Device 3 | 1 . . . . 2 Storage 3 | 1 2 . . . . Processor 2 | . . . . . 2 Hackware . | . . . . . . Protection 4 | . 1 1 . 1 1 Artifact . | . . . . . . Weapon 18 | 2 3 4 1 4 4 Energy Gun . | . . . . . . Energy Cannon 4 | . 1 2 . . 1 Ballistic Gun 8 | 2 1 . 1 1 3 Ballistic Cannon 2 | . . . . 2 . Launcher 4 | . 1 2 . 1 . Special Weapon . | . . . . . . Impact Weapon . | . . . . . . Slashing Weapon . | . . . . . . Piercing Weapon . | . . . . . . Special Melee Weapon . | . . . . . . Unidentified Prototypes . | . . . . . . Parts Lost 25 | . 3 5 . 1 16 Power 4 | . . 2 . . 2 Propulsion 10 | . 1 2 . . 7 Utility 6 | . 1 1 . 1 3 Weapon 5 | . 1 . . . 4 Highest Loss Streak 10 | . 2 3 . 1 10 To Critical Strikes 1 | . . . . . 1 Average Slot Usage (%) 95 | . 99 97 100 99 83 Engine 5 | . 14 10 . . 3 Core 6 | . . 1 14 14 4 Treads 12 | . 13 14 14 14 9 Wheel 13 | . 13 13 14 14 12 Device 3 | . 11 . . . 4 Storage 12 | . 14 14 14 14 9 Processor 3 | . . . . . 13 Protection 10 | . 2 13 14 13 8 Energy Cannon 6 | . 6 12 14 . 2 Ballistic Gun 14 | . 21 14 14 13 12 Ballistic Cannon 3 | . . . . 14 2 Naked Turns . | . . . . . . Heaviest Build 63 | 15 53 55 55 55 63 Greatest Support 40 | 20 20 16 16 16 40 Greatest Overweight (x) 13 | 1 5 5 3 5 13 Average Overweight (x) 3 | . 2 4 3 3 3 Largest Inventory Capacity 20 | 8 20 20 20 20 20 Average Capacity 18 | 7 12 20 20 20 20 Most Carried 20 | 8 10 19 20 20 20 Average Carried 15 | 4 9 10 19 19 19 Final Capacity 20 | 8 20 20 20 20 20 Final Carried 20 | 8 9 19 20 20 19 Class Distribution -------------------- 91% | Mutant 8% | Scavenger-Mutant Dominant Class ---------------- Mutant | -10/Materials Mutant | -10/Mines Mutant | -10/Exiles Mutant | -9/Mines Mutant | -8/Materials Resources | -11 -10 -10 -10 -9 -8 ----------- Run | Yrd Mat Min Exi Min Mat Matter Collected 2049 | 312 316 308 345 124 644 Remotely . | . . . . . . Salvage Created 1766 | 122 550 235 . 14 845 Parts 100 | 9 34 13 . 2 42 Haulers Intercepted 1 | . 1 . . . . Recyclers Shooed 2 | . . . . . 2 Parts Field Recycled . | . . . . . . Retrieved Matter . | . . . . . . Parts Self-Destructed . | . . . . . . Prevented . | . . . . . . Kills | -11 -10 -10 -10 -9 -8 ------- Run | Yrd Mat Min Exi Min Mat Combat Hostiles Destroyed 55 | . 15 25 . 3 12 Guns 20 | . 9 3 . . 8 Cannons 10 | . 3 2 . 1 4 AOE 25 | . 3 20 . 2 . Classes Destroyed 12 | 2 4 2 . . 4 Worker 5 | . . . . . 5 Builder 1 | . . . . . 1 Tunneler 2 | 2 . . . . . Hauler 1 | . 1 . . . . Recycler 2 | 1 . . . . 1 Operator 2 | . 1 . . . 1 Swarmer 11 | . 3 5 . 3 . Grunt 23 | . 12 2 . . 9 Demolisher 2 | . . 2 . . . Specialist 2 | . . . . . 2 Hunter 1 | . . . . . 1 Assembled 17 | . . 17 . . . Best Kill Streak 19 | 2 5 19 . 3 4 Combat Bots Only 19 | . 5 19 . 3 4 Max Kills in Single Turn 3 | 1 3 3 . 2 1 Gunslinging . | . . . . . . Exploded 3 | . 3 3 . 2 . Melee . | . . . . . . Uniques/NPCs Destroyed . | . . . . . . Combat | -11 -10 -10 -10 -9 -8 -------- Run | Yrd Mat Min Exi Min Mat Hostile Shots Fired 291 | . 62 41 . 12 176 Missed 72 | . 21 13 . 1 37 Damage Taken 3271 | . 451 648 . 200 1972 Core 672 | . 71 31 . 8 562 Absorbed by Shields 144 | . . . . . 144 Ignored by Resistances 25 | . . . . . 25 Regen/Repaired (Parts) 123 | . 123 . . . . Core Remaining (%) 78 | 100 . . . 56 . Volleys Fired 172 | 7 48 32 . 10 75 Largest 2 | 2 2 2 . 2 2 Hottest 85 | 40 80 80 . 59 85 Shots Fired 306 | 14 94 41 . 13 144 Gun 234 | 14 77 16 . 3 124 Cannon 54 | . 16 9 . 9 20 Launcher 18 | . 1 16 . 1 . Special . | . . . . . . Kinetic 243 | 14 77 16 . 12 124 Thermal 45 | . 16 9 . . 20 Explosive 18 | . 1 16 . 1 . Electromagnetic . | . . . . . . Robot Hit Streak 27 | 6 27 6 . 3 18 Robot Miss Streak 3 | 1 2 2 . 2 3 Penetration Max . | . . . . . . Secondary Targets 1 | . . . . . 1 Max Gunslinging Chain 1 | . . . . . 1 Shots Hit Robots 216 | 9 71 20 . 7 109 Core Hits 127 | 4 27 50 . 4 42 Critical Kills . | . . . . . . Critical Parts Destroyed . | . . . . . . Critical Strikes 1 | . . 1 . . . Destroy 1 | . . 1 . . . Melee Attacks . | . . . . . . Impact . | . . . . . . Slashing . | . . . . . . Piercing . | . . . . . . Sneak Attacks . | . . . . . . Combat Hostiles . | . . . . . . Follow-up Attacks . | . . . . . . Damage Inflicted 4989 | 113 1146 1645 . 278 1807 Guns 2554 | 113 761 144 . 9 1527 Cannons 698 | . 175 123 . 120 280 Explosions 1737 | . 210 1378 . 149 . Melee . | . . . . . . Ramming . | . . . . . . Kinetic 2674 | 113 761 144 . 129 1527 Thermal 578 | . 175 123 . . 280 Explosive 1737 | . 210 1378 . 149 . Electromagnetic . | . . . . . . Impact . | . . . . . . Slashing . | . . . . . . Piercing . | . . . . . . Highest Corruption 1 | . . . . . 1 Average Corruption 1 | . . . . . 1 Corruption Purged . | . . . . . . Corruption Blocked . | . . . . . . Effects 1 | . . . . . 1 Message Errors 1 | . . . . . 1 Overload Shots . | . . . . . . Overflow Damage 67 | . 15 52 . . . Projectiles 5 | . 5 . . . . Explosions 62 | . 10 52 . . . Melee . | . . . . . . Knockbacks 2 | . . . . 2 . Impact . | . . . . . . Kinetic 2 | . . . . 2 . Secondary . | . . . . . . Self-Inflicted Damage 103 | . 18 58 . 27 . Shots 4 | . 1 2 . 1 . Rammed . | . . . . . . Targets Rammed . | . . . . . . Kicked . | . . . . . . Crushed . | . . . . . . Highest Temperature 652 | 6 117 86 . 26 652 Average Temperature 99 | 6 31 43 . 14 138 Received Heat Transfer 960 | . 207 86 . 27 640 Effects 17 | . . . . . 17 Shutdowns 1 | . . . . . 1 Energy Bleed 1 | . . . . . 1 Interference 1 | . . . . . 1 Matter Decay 2 | . . . . . 2 Short Circuit 1 | . . . . . 1 Damage (minor) 2 | . . . . . 2 Damage (major) 8 | . . . . . 8 Damage (core) 1 | . . . . . 1 Siege Activations . | . . . . . . Robots Corrupted . | . . . . . . Combat Hostiles . | . . . . . . Parts Fried . | . . . . . . Impact Corruptions . | . . . . . . Robots Melted . | . . . . . . Combat Hostiles . | . . . . . . Parts Melted 2 | . . . . . 2 Heat Transferred 1221 | . 370 259 . . 592 Parts Sabotaged . | . . . . . . Parts Stolen . | . . . . . . Parts Stripped . | . . . . . . Power Chain Reactions . | . . . . . . Alert | -11 -10 -10 -10 -9 -8 ------- Run | Yrd Mat Min Exi Min Mat Peak Influence 419 | 15 407 402 . 83 419 Initial 158 | . 9 158 . . 20 Average 157 | 6 203 218 . 47 185 Maximum Alert Level 2 | . 2 2 . . 2 Low Security (%) 61 | 100 48 50 . 100 41 Level 1 37 | . 46 48 . . 57 Level 2 1 | . 4 . . . . Level 3 . | . . . . . . Level 4 . | . . . . . . Level 5 . | . . . . . . High Security . | . . . . . . Max Security . | . . . . . . Squads Dispatched 15 | . 5 1 . . 9 Investigation 8 | . 4 1 . . 3 Extermination . | . . . . . . Reinforcement 4 | . 1 . . . 3 Assault . | . . . . . . Garrison 3 | . . . . . 3 Intercept . | . . . . . . Searches Triggered . | . . . . . . Construction Impeded . | . . . . . . Haulers Reinforced . | . . . . . . Active Scanning Responses . | . . . . . . Cargo Convoy Interrupts . | . . . . . . Stealth | -11 -10 -10 -10 -9 -8 --------- Run | Yrd Mat Min Exi Min Mat Distress Signals 5 | . 2 . . . 3 Communications Jammed . | . . . . . . Distress Signals . | . . . . . . Times Spotted 90 | . 25 29 . 6 30 Peak Tracking Total 11 | . 6 11 . 3 7 Tactical Retreats 4 | . 3 . . . 1 Traps | -11 -10 -10 -10 -9 -8 ------- Run | Yrd Mat Min Exi Min Mat Traps Triggered 3 | . 1 . . . 2 Indirectly . | . . . . . . Trap Hack Attempts . | . . . . . . Triggered . | . . . . . . Disarmed . | . . . . . . Reprogrammed . | . . . . . . Reused . | . . . . . . Traps Extracted . | . . . . . . Installed . | . . . . . . Triggered . | . . . . . . Machines | -11 -10 -10 -10 -9 -8 ---------- Run | Yrd Mat Min Exi Min Mat Machines Disabled 3 | . 1 . . . 2 Max in Single Turn 1 | . 1 . . . 1 Machines Repaired . | . . . . . . Machines Dismantled . | . . . . . . Machines Sabotaged . | . . . . . . Overloaded Fab Kills . | . . . . . . Hacking | -11 -10 -10 -10 -9 -8 --------- Run | Yrd Mat Min Exi Min Mat Machines Accessed 14 | . 8 1 2 . 3 Terminals 7 | . 6 . . . 1 Fabricators . | . . . . . . Repair Stations 1 | . 1 . . . . Recycling Units 2 | . 1 . . . 1 Scanalyzers . | . . . . . . Garrison Access 1 | . . . . . 1 Total Hacks 39 | . 22 1 5 . 11 Successful 21 | . 12 1 5 . 3 Failed 17 | . 9 . . . 8 Catastrophic 6 | . 4 . . . 2 Database Lockouts 1 | . 1 . . . . Manual 16 | . 9 . 1 . 6 Terminals 21 | . 16 . . . 5 Fabricators . | . . . . . . Repair Stations 2 | . 2 . . . . Recycling Units 8 | . 4 . . . 4 Scanalyzers . | . . . . . . Garrison Access 2 | . . . . . 2 Terminal Hacks 13 | . 7 1 5 . . Record 4 | . . . 4 . . Part Schematic 1 | . 1 . . . . Prototype ID Bank 4 | . 4 . . . . Open Door 1 | . . 1 . . . Locate Traps 1 | . 1 . . . . Recall Investigation 1 | . 1 . . . . Derelict Proto ID Bank 1 | . . . 1 . . Fabricator Hacks . | . . . . . . Repair Station Hacks 2 | . 2 . . . . Scan Component 1 | . 1 . . . . Repair 1 | . 1 . . . . Recycling Unit Hacks 3 | . 2 . . . 1 Report Inventory 2 | . 1 . . . 1 Retrieve Components 1 | . 1 . . . . Scanalyzer . | . . . . . . Garrison Access Hacks 1 | . . . . . 1 Unlock Access 1 | . . . . . 1 Unauthorized Hacks 2 | . 1 . . . 1 Terminals . | . . . . . . Fabricators . | . . . . . . Repair Stations . | . . . . . . Recycling Units 1 | . 1 . . . . Tunnel 1 | . 1 . . . . Scanalyzers . | . . . . . . Garrison Access 1 | . . . . . 1 Reprogram 1 | . . . . . 1 Data Cores Recovered . | . . . . . . Used . | . . . . . . Hacking Detections 9 | . 7 . . . 2 Full Trace Events 5 | . 3 . . . 2 Feedback Events 1 | . . . . . 1 Corruption 1 | . . . . . 1 Feedback Blocked . | . . . . . . Robot Schematics Acquired . | . . . . . . Robots Built . | . . . . . . Authchips . | . . . . . . Time . | . . . . . . Total Robot Build Rating . | . . . . . . Part Schematics Acquired 1 | . 1 . . . . Parts Built . | . . . . . . Authchips . | . . . . . . Time . | . . . . . . Total Part Build Rating . | . . . . . . Parts Repaired 1 | . 1 . . . . Time 26 | . 26 . . . . Parts Recycled . | . . . . . . Recycled Matter . | . . . . . . Retrieved Matter . | . . . . . . Retrieved Components 3 | . 3 . . . . Parts Scanalyzed . | . . . . . . Part Schematics Acquired . | . . . . . . Parts Damaged . | . . . . . . Bothacking | -11 -10 -10 -10 -9 -8 ------------ Run | Yrd Mat Min Exi Min Mat Used RIF Installer . | . . . . . . Robots Hacked . | . . . . . . Non-combat . | . . . . . . Combat . | . . . . . . Robot Hacks Applied . | . . . . . . Relay Couplers Released . | . . . . . . Fabnet Peak Effective % . | . . . . . . Robots Rewired . | . . . . . . Allies Hacked . | . . . . . . Hacks Repelled . | . . . . . . Allies | -11 -10 -10 -10 -9 -8 -------- Run | Yrd Mat Min Exi Min Mat Total Allies 7 | . . 3 . 2 2 Largest Group 4 | . . 3 . 2 4 Highest-Rated Group 51 | . . 40 . 41 51 Highest-Rated Ally 31 | . . 16 . 31 31 Total Orders . | . . . . . . Ally Attacks 51 | . . 16 . 6 29 Total Damage 643 | . . 144 . 105 394 Kills 14 | . . 5 . 2 7 Allies Corrupted . | . . . . . . Allies Melted . | . . . . . . Intel | -11 -10 -10 -10 -9 -8 ------- Run | Yrd Mat Min Exi Min Mat Robot Analysis Total . | . . . . . . Derelict Logs Recovered 4 | . . 2 . 2 . Drone Launches . | . . . . . . Drone Recoveries . | . . . . . . Exploration | -11 -10 -10 -10 -9 -8 ------------- Run | Yrd Mat Min Exi Min Mat Turns Passed 3771 | 124 654 823 489 797 884 Spaces Moved 2041 | 60 361 425 334 427 434 Core 6 | 2 . . . . 4 Treads 24 | 6 4 . . . 14 Legs . | . . . . . . Wheels 2011 | 52 357 425 334 427 416 Hover . | . . . . . . Flight . | . . . . . . Fastest Speed 50 | 50 95 130 145 145 95 Average Speed 138 | 98 114 151 145 146 140 Slowest Speed 700 | 160 320 155 145 155 700 Overloaded Moves . | . . . . . . Propulsion Burnouts . | . . . . . . Robots Hopped . | . . . . . . Cave-ins Triggered . | . . . . . . Exploration Rate (%) 57 | 4 69 82 70 80 42 Regions Visited 5 Branch Regions 3 Pre-discovered Areas 4 | . 1 1 1 1 . Known Exits Taken 1 | . . 1 . . . Unknown Exits Taken 4 | 1 1 . 1 1 . Scrap Searched 2 | . . 1 . 1 . Spaces Dug . | . . . . . . Terrain Destroyed 136 | . 4 121 . 11 . Melee . | . . . . . . Projectile . | . . . . . . AOE 136 | . 4 121 . 11 . Terrain Rammed . | . . . . . . Walls Destroyed . | . . . . . . Machines Disabled . | . . . . . . Actions | -11 -10 -10 -10 -9 -8 --------- Run | Yrd Mat Min Exi Min Mat Total 2696 | 107 509 560 342 585 593 Wait 374 | 26 77 82 . 136 53 Move 2036 | 59 360 424 333 426 434 Hop . | . . . . . . Pick Up 44 | 8 8 13 4 3 8 Fast Attach 19 | 7 2 1 . . 9 Attach 13 | . 2 4 1 1 5 Detach . | . . . . . . Swap 16 | . 5 4 . 6 1 Drop 22 | . 7 . 4 3 8 Fire 172 | 7 48 32 . 10 75 Melee . | . . . . . . Ram . | . . . . . . Kick . | . . . . . . Crush . | . . . . . . Escape Stasis . | . . . . . . Rewire . | . . . . . . Trap . | . . . . . . Miscellaneous . | . . . . . . Route ------- -11/Scrapyard -10/Materials (discovered 3 exits: [*Mat] / *Min x2) -10/Mines (discovered 3 exits: [*Mat x2] / *Exi) -10/Exiles (discovered 2 exits: [*Min x2]) -9/Mines (discovered 2 exits: *Mat x2) -8/Materials (discovered 2 exits: [*Fac] / Gar) History --------- Turn | Location | Event 10 | -11/Scrapyard | Discovered new exit (range 16) 125 | -11/Scrapyard | Entered Materials 259 | -10/Materials | Repaired Lgt. Treads 305 | -10/Materials | Build established: Mutant 370 | -10/Materials | Discovered new exit (range 10) 514 | -10/Materials | Discovered new exit (range 15) 599 | -10/Materials | Discovered new exit (range 13) 629 | -10/Materials | Central database locked down 779 | -10/Materials | Entered Mines 831 | -10/Mines | Assisted by bots powering up and referring to "LRC-V3" 1023 | -10/Mines | Learned location of Zion (-6) 1023 | -10/Mines | Discovered new exit (range 13) 1027 | -10/Mines | Assembled infested the area 1102 | -10/Mines | Destroyed 19 combat bots 1109 | -10/Mines | Identified exit to Exiles 1479 | -10/Mines | Discovered new exit (range 12) 1496 | -10/Mines | Met a Derelict shopkeep closing up shop 1500 | -10/Mines | Lost 3 parts (1p1n1u) 1596 | -10/Mines | Deemed a non-threat by the Exiles lab entrance 1602 | -10/Mines | Entered Exiles 1621 | -10/Exiles | Discovered new exit (range 15) 1639 | -10/Exiles | Met 8R-AWN 1662 | -10/Exiles | Met EX-HEX 1716 | -10/Exiles | Met EX-DEC 1849 | -10/Exiles | Met EX-BIN 1879 | -10/Exiles | Aligned with FarCom system 1881 | -10/Exiles | Given EX-Vault access code 1914 | -10/Exiles | Opened EX-Vault 1925 | -10/Exiles | Found Trap Reconfigurator 1957 | -10/Exiles | Warned to stay clear of 0b10 Research branches 2080 | -10/Exiles | Discovered new exit (range 10) 2091 | -10/Exiles | Left Exiles lab with Trap Reconfigurator 2091 | -10/Exiles | Entered Mines 2416 | -9/Mines | Found a damaged Exp. Sensor Array with a note attached 2419 | -9/Mines | Found Prototype Device 2485 | -9/Mines | Learned location of Storage (-7) 2723 | -9/Mines | Joined a pair of Derelicts in attacking an 0b10 outpost 2773 | -9/Mines | Discovered new exit (range 8) 2825 | -9/Mines | Learned Materials garrison access intel 2845 | -9/Mines | Discovered new exit (range 9) 2888 | -9/Mines | Entered Materials 2888 | -8/Materials | Accompanied by 2 allies 2888 | -8/Materials | Evolved 4 slots: Propulsion x2, Utility x2 2889 | -8/Materials | Loaded intel: 1 garrison access location 2893 | -8/Materials | Led the pair of lost Derelicts to an unsafe place 3046 | -8/Materials | Identified exit to Garrison 3148 | -8/Materials | Garrison activated, responded to threat 3402 | -8/Materials | Lost 4 parts (1p2n1u) 3422 | -8/Materials | Discovered new exit (range 7) 3704 | -8/Materials | Build established: Scavenger-Mutant 3752 | -8/Materials | Core integrity fell below 50% 3764 | -8/Materials | Core integrity fell below 20% 3772 | -8/Materials | Destroyed by G-47 Trooper with Particle Gun Last Messages --------------- 03754_ K-01 Serf collects debris. 03757_ Overheating: Broken Salvage Targeting Computer damaged (-10). 03757_ Overheating: Adv. Targeting Computer damaged (-4). 03757_ Overheating: Hcp. Storage Unit damaged (-29). 03757_ Acquired 40 matter. 03758_ K-01 Serf collects debris. 03759_ Overheating: Hcp. Storage Unit damaged (-20). 03759_ BFCT:7LMZOE89NOGON%HAY> 03759_ Critical hit (Burn: +37). 03760_ K-01 Serf collects debris. 03770_ Material Compactor disabled. 03770_ Broken Salvage Targeting Computer destroyed. 03771_ Triggered Explosive Trap. 03771_ An explosion rips through the floor. 03772_ Critical hit (Burn: +37). Map ----- +----------------------------------------------------+ | ?????????????????????????????????????????????????? | | ?????????????????????????????????????????????????? | | ?????????????????????????????????????????????????? | | ?????????????????????????????????????????????????? | | ?????????????????????????????????????????????????? | | ?????????????????????????????????????????????????? | | ?????????????????????????????????????????????????? | | ?????????????????????????????????????????????????? | | ?????????????????????????????????????????????????? | | ?????????????????????????????????????????????????? | | ????????????????????????? ?????????????????????? | | ????????????????????????? +????????????????????? | | ????????????????????????? #????????????????????? | | ????????????????????????# #????????????????????? | | ????????????????????????#gag#????????????????????? | | ????????????????????????# #????????????????????? | | ????????????????????????# #????????????????????? | | ?????????????????????"??# #????????????????????? | | ????????????????????""??# #????????????????????? | | ?????????????????????""?# #####????????????????? | | ?????????????????????""?# ^ ?????????????????? | | ?????????????????????? # ?????????????????? | | ??????????????????????? # """ ?????????????????? | | ???????????????????????# """"" ????????????????? | | ???????????????????????# !%""""" ?????????????? | | ???????????????????????# @[ """ #?????????????? | | ???????????#######?????# * "" #?????????????? | | ???????????# ####### %*%g # ????????????? | | ???????????# k ! g b[ u/ ????????? | | ???????????# T kY # ????????? | | ???????????# [ a t #????#????????? | | ???????????# ! ####### #?????????????? | | ############# ##?????# #### #?????????????? | | # # #?????? #??? #?????????????? | | # """ # #?????? !#???? #?????????????? | | # """"" / #?????#!!!!##????? #?????????????? | | # """"" # #?????######???????#?????????????? | | # """"" # #????????????????????????????????? | | # """ # #????????????????????????????????? | | # # #????????????????????????????????? | | ##+####+##### #????????????????????????????????? | | ## #??# #???# #????????????????????????????????? | | ## #### #???# #????????????????????????????????? | | #???# #????????????????????????????????? | | ##+#???# #????????????????????????????????? | | #??????? #????????????????????????????????? | | ### ##??????? #????????????????????????????????? | | ###+###?????? #????????????????????????????????? | | #?????? #????????????????????????????????? | | """ #?????? +????????????????????????????????? | +----------------------------------------------------+ Best States ------------- Heat Dissipation 31 Energy Generation 14 Energy Capacity 265 Matter Stores 300 Matter Capacity 300 Sight Range 16 Terrain Scan Range 16 Terrain Scan Density 10 Armor Coverage 150 Resistance: KI 20 Evasion (%) 44 Targeting Accuracy 8 Recoil Reduction 4 Salvage Targeting 1 Item Schematics ----------------- Cargo Storage Unit | -10/Materials | Hacked Robot Schematics ------------------ None Fabricated ------------ Nothing Alien Tech Used ----------------- None Achievements -------------- None Challenges ------------ None Game ------ Seed DisruptorAutogunArchive Manual? 0 Play Time 00:28:11 Cumulative 636.6 hours Start 2024.03.23 @ 05:45:19 End 2024.03.23 @ 06:18:02 Sessions 1 Manual Loads 0 Difficulty Rogue Special Mode None Game No. 248 Rogue 224 Adventurer 3 Explorer 21 Win Type - Total 14 Types 9/2/1/1/0/1/0/0/0 Lore% 89 Gallery% 96 Achievement% 83 Wizard Run 0 Options --------- Layout 2 ASCII 0 Keyboard 0 Movement Numpad Keybinds 0 Fullscreen 2 Font 24/Smallcaps Map View 50x44 Zoom Use 0% Tactical HUD 1 Map Filters NONE Filters NONE Steam 1 RUN: 238f330b-8c53-4e4e-b008-91ac04c7e770